[Event "*** Titled Tuesday Blitz"]
[Site "Chess.com"]
[Date "2021.03.16"]
[Round "3"]
[White "Nemsko"]
[Black "andriipalchuk"]
[Result "0-1"]
[WhiteElo "2317"]
[BlackElo "2588"]
[TimeControl "180+1"]
[EndTime "10:22:03 PDT"]
[Termination "andriipalchuk won by resignation"]

1. e4 {[%clk 0:03:00.9]} 1... e5 {[%clk 0:02:58.5]} 2. Nf3 {[%clk 0:03:00.7]}
2... Nc6 {[%clk 0:02:58.3]} 3. Bb5 {[%clk 0:03:00.6]} 3... a6 {[%clk 0:02:58]}
4. Ba4 {[%clk 0:03:00.9]} 4... Nf6 {[%clk 0:02:57.6]} 5. O-O {[%clk 0:03:01.4]}
5... Nxe4 {[%clk 0:02:56.9]} 6. d4 {[%clk 0:03:00]} 6... b5 {[%clk 0:02:55.2]}
7. Bb3 {[%clk 0:03:00]} 7... d5 {[%clk 0:02:55.9]} 8. dxe5 {[%clk 0:03:00.5]}
8... Be6 {[%clk 0:02:53.8]} 9. c3 {[%clk 0:02:56.7]} 9... Bc5 {[%clk 0:02:52.8]}
10. Bf4 {[%clk 0:02:53.7]} 10... g5 {[%clk 0:02:41.7]} 11. Bg3 {[%clk
0:02:52.1]} 11... h5 {[%clk 0:02:41.2]} 12. h4 {[%clk 0:02:45.8]} 12... Nxg3
{[%clk 0:02:40.1]} 0-1

[Event "*** Titled Tuesday Blitz"]
[Site "Chess.com"]
[Date "2021.03.16"]
[Round "3"]
[White "SharapovEvgeny"]
[Black "ellennilssen"]
[Result "1-0"]
[WhiteElo "2485"]
[BlackElo "2276"]
[TimeControl "180+1"]
[EndTime "10:23:06 PDT"]
[Termination "SharapovEvgeny won by resignation"]

1. c4 {[%clk 0:02:59.3]} 1... e5 {[%clk 0:02:48]} 2. Nc3 {[%clk 0:02:57.7]} 2...
Nf6 {[%clk 0:02:46.3]} 3. g3 {[%clk 0:02:57.7]} 3... d5 {[%clk 0:02:41.4]} 4.
cxd5 {[%clk 0:02:56.8]} 4... Nxd5 {[%clk 0:02:42.3]} 5. Bg2 {[%clk 0:02:57]}
5... Be6 {[%clk 0:02:42.2]} 6. Nf3 {[%clk 0:02:55.8]} 6... Nc6 {[%clk
0:02:41.7]} 7. O-O {[%clk 0:02:54.9]} 7... Be7 {[%clk 0:02:42]} 8. d3 {[%clk
0:02:54.6]} 8... O-O {[%clk 0:02:42]} 9. Bd2 {[%clk 0:02:48.3]} 9... Qd7 {[%clk
0:02:39.6]} 10. Rc1 {[%clk 0:02:46.6]} 10... f5 {[%clk 0:02:37.1]} 11. e4 {[%clk
0:02:41.3]} 11... fxe4 {[%clk 0:02:33.8]} 12. Nxe4 {[%clk 0:02:35.5]} 12... Ndb4
{[%clk 0:02:24.9]} 13. Bxb4 {[%clk 0:02:34.3]} 13... Nxb4 {[%clk 0:02:23.4]} 14.
Nxe5 {[%clk 0:02:31.9]} 14... Nxa2 {[%clk 0:02:20.1]} 15. Nxd7 {[%clk
0:02:30.7]} 15... Nxc1 {[%clk 0:02:07.5]} 16. Nxf8 {[%clk 0:02:28.3]} 16... Rxf8
{[%clk 0:02:04.4]} 17. Qxc1 {[%clk 0:02:27.5]} 1-0

[Event "*** Titled Tuesday Blitz"]
[Site "Chess.com"]
[Date "2021.03.16"]
[Round "3"]
[White "SchmakAttack"]
[Black "bakki78"]
[Result "1-0"]
[WhiteElo "2580"]
[BlackElo "2780"]
[TimeControl "180+1"]
[EndTime "10:23:38 PDT"]
[Termination "SchmakAttack won by resignation"]

1. e4 {[%clk 0:03:00.9]} 1... c5 {[%clk 0:02:59.2]} 2. Nf3 {[%clk 0:03:00.5]}
2... Nc6 {[%clk 0:02:59.2]} 3. d4 {[%clk 0:03:00.7]} 3... cxd4 {[%clk
0:02:59.5]} 4. Nxd4 {[%clk 0:03:01.6]} 4... Nf6 {[%clk 0:02:59.7]} 5. Nc3 {[%clk
0:03:02]} 5... d6 {[%clk 0:03:00.1]} 6. Bg5 {[%clk 0:03:01.8]} 6... e6 {[%clk
0:03:00.1]} 7. Qd2 {[%clk 0:03:02.2]} 7... a6 {[%clk 0:03:00.4]} 8. O-O-O {[%clk
0:03:01.7]} 8... Bd7 {[%clk 0:03:00.5]} 9. f4 {[%clk 0:03:01]} 9... Be7 {[%clk
0:02:59.6]} 10. Nf3 {[%clk 0:02:58.6]} 10... b5 {[%clk 0:02:59.1]} 11. Bxf6
{[%clk 0:02:26.4]} 11... gxf6 {[%clk 0:02:58.5]} 12. f5 {[%clk 0:02:22.5]} 12...
Qa5 {[%clk 0:02:54.4]} 13. Kb1 {[%clk 0:02:21.7]} 13... Qd8 {[%clk 0:02:41.6]}
14. g3 {[%clk 0:02:06.6]} 14... Qa5 {[%clk 0:02:42.5]} 15. fxe6 {[%clk
0:01:42.4]} 15... Rc8 {[%clk 0:02:43.4]} 16. exd7+ {[%clk 0:01:41.9]} 16... Kxd7
{[%clk 0:02:24.8]} 17. Bh3+ {[%clk 0:01:41.2]} 17... Kd8 {[%clk 0:02:24.7]} 18.
Bxc8 {[%clk 0:01:40.4]} 18... Kxc8 {[%clk 0:02:25.1]} 19. Nd5 {[%clk 0:01:40]}
1-0

[Event "*** Titled Tuesday Blitz"]
[Site "Chess.com"]
[Date "2021.03.16"]
[Round "3"]
[White "adriangschnitzer"]
[Black "eljanov"]
[Result "0-1"]
[WhiteElo "2493"]
[BlackElo "2869"]
[TimeControl "180+1"]
[EndTime "10:25:02 PDT"]
[Termination "eljanov won by resignation"]

1. e4 {[%clk 0:03:00.9]} 1... c6 {[%clk 0:03:00]} 2. d4 {[%clk 0:03:00.6]} 2...
d5 {[%clk 0:03:00.9]} 3. e5 {[%clk 0:03:01]} 3... Bf5 {[%clk 0:02:59.5]} 4. Nf3
{[%clk 0:03:00.6]} 4... e6 {[%clk 0:02:59.7]} 5. Be2 {[%clk 0:03:00.7]} 5... Ne7
{[%clk 0:03:00.3]} 6. O-O {[%clk 0:03:00.7]} 6... c5 {[%clk 0:03:00.7]} 7. c4
{[%clk 0:03:00.1]} 7... dxc4 {[%clk 0:02:59.8]} 8. Na3 {[%clk 0:02:58.7]} 8...
Nbc6 {[%clk 0:02:58.4]} 9. Bg5 {[%clk 0:02:46.1]} 9... Qd7 {[%clk 0:02:56.6]}
10. Nxc4 {[%clk 0:02:27.8]} 10... Nd5 {[%clk 0:02:56.4]} 11. Rc1 {[%clk
0:02:21]} 11... h6 {[%clk 0:02:55.9]} 12. Be3 {[%clk 0:02:17.5]} 12... b5 {[%clk
0:02:52.2]} 13. Na3 {[%clk 0:02:03.2]} 13... a6 {[%clk 0:02:51.4]} 14. dxc5
{[%clk 0:02:02.3]} 14... Be7 {[%clk 0:02:43.3]} 15. Nd4 {[%clk 0:01:54.5]} 15...
Be4 {[%clk 0:02:25.8]} 16. Nxc6 {[%clk 0:01:43.3]} 16... Qxc6 {[%clk 0:02:23.4]}
17. Qd4 {[%clk 0:01:41.8]} 17... Bxg2 {[%clk 0:02:18]} 18. Rfd1 {[%clk
0:01:30.7]} 18... O-O {[%clk 0:02:06.6]} 19. Bxh6 {[%clk 0:01:26.3]} 19... gxh6
{[%clk 0:02:05.7]} 20. Qg4+ {[%clk 0:01:24.8]} 20... Kh8 {[%clk 0:02:03.6]} 21.
Qh5 {[%clk 0:01:14.8]} 21... Bg5 {[%clk 0:01:56.1]} 22. Bf3 {[%clk 0:01:07.9]}
22... Bxf3 {[%clk 0:01:53.7]} 23. Qxf3 {[%clk 0:01:08.8]} 23... Bxc1 {[%clk
0:01:51.8]} 24. Rxc1 {[%clk 0:01:09.6]} 24... Rg8+ {[%clk 0:01:51.9]} 25. Kh1
{[%clk 0:01:06.8]} 25... Nb4 {[%clk 0:01:48.6]} 0-1

[Event "*** Titled Tuesday Blitz"]
[Site "Chess.com"]
[Date "2021.03.16"]
[Round "3"]
[White "NiranjanNavalgund"]
[Black "ChessLover0108"]
[Result "0-1"]
[WhiteElo "2504"]
[BlackElo "2785"]
[TimeControl "180+1"]
[EndTime "10:25:11 PDT"]
[Termination "ChessLover0108 won by resignation"]

1. e4 {[%clk 0:03:00.9]} 1... c5 {[%clk 0:02:59.3]} 2. d4 {[%clk 0:02:57.1]}
2... cxd4 {[%clk 0:02:59.5]} 3. c3 {[%clk 0:02:57.5]} 3... Nf6 {[%clk 0:03:00]}
4. e5 {[%clk 0:02:57.1]} 4... Nd5 {[%clk 0:02:58]} 5. Nf3 {[%clk 0:02:57.5]}
5... d6 {[%clk 0:02:57.8]} 6. cxd4 {[%clk 0:02:55]} 6... Nc6 {[%clk 0:02:58]} 7.
Bc4 {[%clk 0:02:54.7]} 7... Nb6 {[%clk 0:02:57.7]} 8. Bb5 {[%clk 0:02:54.2]}
8... Bd7 {[%clk 0:02:57.6]} 9. Nc3 {[%clk 0:02:50.2]} 9... dxe5 {[%clk
0:02:57.7]} 10. dxe5 {[%clk 0:02:42.7]} 10... g6 {[%clk 0:02:57.5]} 11. Bf4
{[%clk 0:02:20.4]} 11... Bg7 {[%clk 0:02:55.5]} 12. Qd2 {[%clk 0:02:20.7]} 12...
Bg4 {[%clk 0:02:49.3]} 13. Nd4 {[%clk 0:02:16.3]} 13... O-O {[%clk 0:02:22.1]}
14. Nxc6 {[%clk 0:02:13]} 14... Qxd2+ {[%clk 0:02:23]} 15. Kxd2 {[%clk
0:02:00.8]} 15... bxc6 {[%clk 0:02:23.9]} 16. Bxc6 {[%clk 0:02:00.2]} 16... Rac8
{[%clk 0:02:19.8]} 17. Bb5 {[%clk 0:01:57.3]} 17... Rfd8+ {[%clk 0:02:20.1]} 18.
Ke3 {[%clk 0:01:48.5]} 18... Rxc3+ {[%clk 0:02:20.3]} 19. bxc3 {[%clk
0:01:44.9]} 19... Nd5+ {[%clk 0:02:21]} 20. Ke4 {[%clk 0:01:34.5]} 20... Nxc3+
{[%clk 0:02:19.8]} 21. Ke3 {[%clk 0:01:34.7]} 21... Nxb5 {[%clk 0:02:15.2]} 22.
f3 {[%clk 0:01:34.2]} 22... Be6 {[%clk 0:02:13.5]} 23. Rhd1 {[%clk 0:01:33.9]}
23... Re8 {[%clk 0:02:02.4]} 24. a4 {[%clk 0:01:20.4]} 24... Nc3 {[%clk
0:02:01.2]} 25. Rdc1 {[%clk 0:01:12.9]} 25... Nd5+ {[%clk 0:02:00]} 26. Ke4
{[%clk 0:01:13.4]} 26... f5+ {[%clk 0:02:00.4]} 27. exf6 {[%clk 0:01:13]} 27...
exf6 {[%clk 0:02:01.3]} 28. Bd6 {[%clk 0:01:08.4]} 28... f5+ {[%clk 0:02:01]}
29. Kd3 {[%clk 0:01:08.3]} 29... Bxa1 {[%clk 0:02:00.3]} 30. Rxa1 {[%clk
0:01:09.2]} 30... Rd8 {[%clk 0:02:00.4]} 31. Be5 {[%clk 0:01:08.8]} 0-1

[Event "*** Titled Tuesday Blitz"]
[Site "Chess.com"]
[Date "2021.03.16"]
[Round "3"]
[White "barbara25"]
[Black "boasovietica"]
[Result "1-0"]
[WhiteElo "2248"]
[BlackElo "2451"]
[TimeControl "180+1"]
[EndTime "10:25:18 PDT"]
[Termination "barbara25 won by resignation"]

1. e4 {[%clk 0:03:00.9]} 1... e5 {[%clk 0:02:59.4]} 2. Nf3 {[%clk 0:03:00.9]}
2... Nc6 {[%clk 0:02:58.8]} 3. d4 {[%clk 0:03:01.1]} 3... exd4 {[%clk
0:02:58.4]} 4. Nxd4 {[%clk 0:03:01.3]} 4... Bb4+ {[%clk 0:02:59]} 5. c3 {[%clk
0:03:00.8]} 5... Bc5 {[%clk 0:02:59.5]} 6. Be3 {[%clk 0:03:01]} 6... Bb6 {[%clk
0:02:59.3]} 7. Nd2 {[%clk 0:02:58.1]} 7... Nf6 {[%clk 0:02:58.6]} 8. Qc2 {[%clk
0:02:57.8]} 8... O-O {[%clk 0:02:58.2]} 9. O-O-O {[%clk 0:02:57.4]} 9... Re8
{[%clk 0:02:57.7]} 10. Bd3 {[%clk 0:02:56.9]} 10... Ne5 {[%clk 0:02:46.1]} 11.
Be2 {[%clk 0:02:55.4]} 11... Nfg4 {[%clk 0:02:42.6]} 12. h3 {[%clk 0:02:48.6]}
12... Nxe3 {[%clk 0:02:38.2]} 13. fxe3 {[%clk 0:02:48.8]} 13... Qg5 {[%clk
0:02:31.5]} 14. N2f3 {[%clk 0:02:22.7]} 14... Qxe3+ {[%clk 0:02:30]} 15. Kb1
{[%clk 0:02:21.7]} 15... Nxf3 {[%clk 0:01:47.6]} 16. Bxf3 {[%clk 0:02:20]} 16...
Bxd4 {[%clk 0:01:36.8]} 17. cxd4 {[%clk 0:02:19]} 17... c6 {[%clk 0:01:24.8]}
18. Rhe1 {[%clk 0:02:18.1]} 18... Qf4 {[%clk 0:01:23.2]} 19. e5 {[%clk
0:02:17.3]} 19... d5 {[%clk 0:01:20.7]} 20. Ka1 {[%clk 0:02:11.2]} 20... Bf5
{[%clk 0:01:16.3]} 21. Qb3 {[%clk 0:02:11]} 21... Re7 {[%clk 0:01:16]} 22. g4
{[%clk 0:02:08.5]} 22... Bg6 {[%clk 0:01:14.7]} 23. Rf1 {[%clk 0:02:08]} 23...
Qg3 {[%clk 0:01:04.3]} 24. Rh1 {[%clk 0:02:05.4]} 24... Rae8 {[%clk 0:01:00.6]}
25. h4 {[%clk 0:02:05.3]} 25... f6 {[%clk 0:00:52.4]} 26. Bxd5+ {[%clk
0:02:03.9]} 26... cxd5 {[%clk 0:00:51.9]} 27. Qxg3 {[%clk 0:02:03.9]} 1-0

[Event "*** Titled Tuesday Blitz"]
[Site "Chess.com"]
[Date "2021.03.16"]
[Round "3"]
[White "ridnani2021"]
[Black "FILI86"]
[Result "1-0"]
[WhiteElo "2343"]
[BlackElo "2543"]
[TimeControl "180+1"]
[EndTime "10:25:41 PDT"]
[Termination "ridnani2021 won by resignation"]

1. e4 {[%clk 0:03:00.9]} 1... e5 {[%clk 0:02:59]} 2. Nf3 {[%clk 0:03:00.8]} 2...
Nc6 {[%clk 0:02:59.3]} 3. d4 {[%clk 0:03:01.3]} 3... exd4 {[%clk 0:02:59.1]} 4.
Nxd4 {[%clk 0:03:02.2]} 4... g6 {[%clk 0:02:59.5]} 5. Nc3 {[%clk 0:03:00.9]}
5... Bg7 {[%clk 0:02:59]} 6. Be3 {[%clk 0:03:00.9]} 6... Nf6 {[%clk 0:02:58.8]}
7. Bc4 {[%clk 0:03:00.2]} 7... O-O {[%clk 0:02:58.6]} 8. O-O {[%clk 0:02:49.5]}
8... d6 {[%clk 0:02:58.1]} 9. h3 {[%clk 0:02:49.3]} 9... Re8 {[%clk 0:02:57]}
10. Qf3 {[%clk 0:02:40.8]} 10... Ne5 {[%clk 0:02:55.2]} 11. Qe2 {[%clk
0:02:38.7]} 11... Nxc4 {[%clk 0:02:55.2]} 12. Qxc4 {[%clk 0:02:39.6]} 12... Nxe4
{[%clk 0:02:50.6]} 13. Nxe4 {[%clk 0:02:39.6]} 13... Rxe4 {[%clk 0:02:51.5]} 14.
Qd5 {[%clk 0:02:36.6]} 14... Re5 {[%clk 0:02:49.4]} 15. Qb3 {[%clk 0:02:35.7]}
15... c6 {[%clk 0:02:35.4]} 16. Rad1 {[%clk 0:02:31.8]} 16... Qc7 {[%clk
0:02:33.9]} 17. c4 {[%clk 0:02:26.1]} 17... Re8 {[%clk 0:02:19.2]} 18. Rfe1
{[%clk 0:01:59.6]} 18... Bd7 {[%clk 0:02:18.5]} 19. Nf3 {[%clk 0:01:48.8]} 19...
Be6 {[%clk 0:02:09.4]} 20. Bf4 {[%clk 0:01:47.3]} 20... Rad8 {[%clk 0:02:07.1]}
21. Qa3 {[%clk 0:01:43.5]} 21... c5 {[%clk 0:02:02.5]} 22. Qxa7 {[%clk
0:01:29.7]} 22... Ra8 {[%clk 0:02:01.8]} 23. Bxd6 {[%clk 0:01:29.1]} 23... Qc6
{[%clk 0:02:01.8]} 24. Qxc5 {[%clk 0:01:28.4]} 24... Qxc5 {[%clk 0:01:57.8]} 25.
Bxc5 {[%clk 0:01:29.3]} 25... Bxb2 {[%clk 0:01:56.7]} 26. Rb1 {[%clk 0:01:23.2]}
26... Rxa2 {[%clk 0:01:53.6]} 27. Re2 {[%clk 0:01:21.5]} 27... Ra4 {[%clk
0:01:33.3]} 28. Rbxb2 {[%clk 0:01:17.8]} 28... Rxc4 {[%clk 0:01:33.2]} 29. Ba3
{[%clk 0:01:17.3]} 29... Rc7 {[%clk 0:01:30.2]} 30. Bd6 {[%clk 0:01:16.2]} 30...
Rd7 {[%clk 0:01:29.8]} 31. Bc5 {[%clk 0:01:14.7]} 31... h6 {[%clk 0:01:25.8]}
32. Nd4 {[%clk 0:01:13.1]} 32... Rc8 {[%clk 0:01:25.5]} 33. Nxe6 {[%clk
0:01:12.9]} 33... fxe6 {[%clk 0:01:25]} 34. Be3 {[%clk 0:01:13.5]} 1-0

[Event "*** Titled Tuesday Blitz"]
[Site "Chess.com"]
[Date "2021.03.16"]
[Round "3"]
[White "novocane"]
[Black "Das_Virus_2020"]
[Result "0-1"]
[WhiteElo "2258"]
[BlackElo "2470"]
[TimeControl "180+1"]
[EndTime "10:25:51 PDT"]
[Termination "Das_Virus_2020 won by resignation"]

1. d4 {[%clk 0:02:59.5]} 1... Nf6 {[%clk 0:02:59.1]} 2. c4 {[%clk 0:02:59.5]}
2... c5 {[%clk 0:02:59]} 3. d5 {[%clk 0:02:59.2]} 3... b5 {[%clk 0:02:58.7]} 4.
cxb5 {[%clk 0:03:00.1]} 4... a6 {[%clk 0:02:59]} 5. f3 {[%clk 0:03:00.8]} 5...
c4 {[%clk 0:02:55.7]} 6. e4 {[%clk 0:02:51.2]} 6... e6 {[%clk 0:02:55.2]} 7.
Bxc4 {[%clk 0:02:27.9]} 7... axb5 {[%clk 0:02:54.3]} 8. Bxb5 {[%clk 0:02:23.1]}
8... Qb6 {[%clk 0:02:53.2]} 9. Nc3 {[%clk 0:02:15.5]} 9... Bc5 {[%clk
0:02:52.2]} 10. Nh3 {[%clk 0:02:15.2]} 10... O-O {[%clk 0:02:51.5]} 11. Qe2
{[%clk 0:02:03.2]} 11... exd5 {[%clk 0:02:43.8]} 12. e5 {[%clk 0:02:02.8]} 12...
Re8 {[%clk 0:02:27.9]} 13. Bd2 {[%clk 0:01:16.4]} 13... Nc6 {[%clk 0:02:09]} 14.
Bxc6 {[%clk 0:00:56.3]} 14... dxc6 {[%clk 0:02:02.5]} 15. O-O-O {[%clk
0:00:32.2]} 15... d4 {[%clk 0:01:46.6]} 16. exf6 {[%clk 0:00:08.6]} 16... Rxe2
{[%clk 0:01:41.9]} 0-1

[Event "*** Titled Tuesday Blitz"]
[Site "Chess.com"]
[Date "2021.03.16"]
[Round "3"]
[White "DrMamaliga"]
[Black "Caleuche"]
[Result "1-0"]
[WhiteElo "2354"]
[BlackElo "2537"]
[TimeControl "180+1"]
[EndTime "10:25:59 PDT"]
[Termination "DrMamaliga won by checkmate"]

1. c4 {[%clk 0:03:00.9]} 1... Nf6 {[%clk 0:02:59]} 2. Nf3 {[%clk 0:03:01.1]}
2... g6 {[%clk 0:02:59.6]} 3. b4 {[%clk 0:03:01.5]} 3... Bg7 {[%clk 0:03:00.5]}
4. Bb2 {[%clk 0:03:02]} 4... O-O {[%clk 0:03:01]} 5. g3 {[%clk 0:03:02.6]} 5...
a5 {[%clk 0:03:01.2]} 6. b5 {[%clk 0:03:02.3]} 6... c5 {[%clk 0:03:01.3]} 7. Bg2
{[%clk 0:03:02.4]} 7... d6 {[%clk 0:03:01.1]} 8. O-O {[%clk 0:03:02.9]} 8... a4
{[%clk 0:03:00]} 9. a3 {[%clk 0:03:02.8]} 9... Nbd7 {[%clk 0:02:59.8]} 10. e3
{[%clk 0:03:03.3]} 10... Nb6 {[%clk 0:03:00.1]} 11. Qc2 {[%clk 0:03:03]} 11...
Be6 {[%clk 0:03:00]} 12. d3 {[%clk 0:03:03]} 12... d5 {[%clk 0:02:59.7]} 13.
Nbd2 {[%clk 0:03:01.6]} 13... Qc8 {[%clk 0:02:57.7]} 14. Rfd1 {[%clk 0:03:00.4]}
14... Bh3 {[%clk 0:02:57.2]} 15. Bh1 {[%clk 0:03:00.2]} 15... Qg4 {[%clk
0:02:57.4]} 16. cxd5 {[%clk 0:02:56.9]} 16... Nbxd5 {[%clk 0:02:55.8]} 17. Nc4
{[%clk 0:02:50.8]} 17... Qh5 {[%clk 0:02:48.1]} 18. e4 {[%clk 0:02:45.3]} 18...
Nf4 {[%clk 0:02:40.7]} 19. Ne3 {[%clk 0:02:37.1]} 19... Ne6 {[%clk 0:02:35.7]}
20. Ne5 {[%clk 0:02:29.8]} 20... Rfd8 {[%clk 0:02:20.2]} 21. f4 {[%clk
0:02:22.4]} 21... Nd4 {[%clk 0:02:15.1]} 22. Bxd4 {[%clk 0:02:22.4]} 22... cxd4
{[%clk 0:02:15.1]} 23. Bf3 {[%clk 0:02:21.1]} 23... Qh6 {[%clk 0:02:12.6]} 24.
N3g4 {[%clk 0:02:21.2]} 24... Nxg4 {[%clk 0:02:12.7]} 25. Nxg4 {[%clk
0:02:20.4]} 25... Bxg4 {[%clk 0:01:48.6]} 26. Bxg4 {[%clk 0:02:21.3]} 26... e6
{[%clk 0:01:48.9]} 27. e5 {[%clk 0:02:17.1]} 27... Bf8 {[%clk 0:01:45.9]} 28.
Bf3 {[%clk 0:02:15.4]} 28... g5 {[%clk 0:01:37.9]} 29. Qd2 {[%clk 0:02:10]}
29... gxf4 {[%clk 0:01:37]} 30. Qxf4 {[%clk 0:02:10.9]} 30... Qxf4 {[%clk
0:01:35.2]} 31. gxf4 {[%clk 0:02:11.8]} 31... Ra5 {[%clk 0:01:35.1]} 32. Rab1
{[%clk 0:02:09.9]} 32... b6 {[%clk 0:01:33.1]} 33. Be4 {[%clk 0:02:05.5]} 33...
Bxa3 {[%clk 0:01:32]} 34. Kf2 {[%clk 0:02:02]} 34... h6 {[%clk 0:01:30.9]} 35.
Rg1+ {[%clk 0:02:00.7]} 35... Kf8 {[%clk 0:01:31.4]} 36. Ra1 {[%clk 0:01:55.3]}
36... Bc5 {[%clk 0:01:30.4]} 37. Bc6 {[%clk 0:01:54.1]} 37... a3 {[%clk
0:01:29]} 38. Ra2 {[%clk 0:01:54.1]} 38... Ke7 {[%clk 0:01:26.5]} 39. Kf3 {[%clk
0:01:54.1]} 39... Ra4 {[%clk 0:01:23.8]} 40. Ke4 {[%clk 0:01:51.7]} 40... f5+
{[%clk 0:01:21.3]} 41. Kf3 {[%clk 0:01:43.2]} 41... Rf8 {[%clk 0:01:12.7]} 42.
Rg7+ {[%clk 0:01:42.5]} 42... Rf7 {[%clk 0:01:12.8]} 43. Rg8 {[%clk 0:01:42.1]}
43... Ra7 {[%clk 0:00:57.8]} 44. Re8# {[%clk 0:01:41]} 1-0

[Event "*** Titled Tuesday Blitz"]
[Site "Chess.com"]
[Date "2021.03.16"]
[Round "3"]
[White "KafkaesqueKnight"]
[Black "Lady_Nika"]
[Result "0-1"]
[WhiteElo "2222"]
[BlackElo "2404"]
[TimeControl "180+1"]
[EndTime "10:26:04 PDT"]
[Termination "Lady_Nika won on time"]

1. d4 {[%clk 0:03:00.8]} 1... d5 {[%clk 0:02:59.2]} 2. c4 {[%clk 0:02:59.6]}
2... e6 {[%clk 0:02:59.4]} 3. Nc3 {[%clk 0:02:59.6]} 3... f5 {[%clk 0:02:59.1]}
4. g4 {[%clk 0:02:56.1]} 4... c6 {[%clk 0:02:57.6]} 5. gxf5 {[%clk 0:02:54.3]}
5... exf5 {[%clk 0:02:57.6]} 6. cxd5 {[%clk 0:02:54.6]} 6... cxd5 {[%clk
0:02:57.6]} 7. Bg2 {[%clk 0:02:54.9]} 7... Nf6 {[%clk 0:02:56.9]} 8. Qb3 {[%clk
0:02:54.8]} 8... Qa5 {[%clk 0:02:48.1]} 9. Bd2 {[%clk 0:02:03.3]} 9... Bb4
{[%clk 0:02:47.4]} 10. a3 {[%clk 0:01:56.3]} 10... Bxc3 {[%clk 0:02:44.5]} 11.
Bxc3 {[%clk 0:01:56.6]} 11... Qd8 {[%clk 0:02:44.3]} 12. Nh3 {[%clk 0:01:33.2]}
12... O-O {[%clk 0:02:42.2]} 13. Nf4 {[%clk 0:01:33.1]} 13... Kh8 {[%clk
0:02:38.4]} 14. O-O {[%clk 0:01:27.9]} 14... Nc6 {[%clk 0:02:37.4]} 15. e3
{[%clk 0:01:17.6]} 15... a5 {[%clk 0:02:33.3]} 16. Rac1 {[%clk 0:01:08.8]} 16...
Ne7 {[%clk 0:02:33.1]} 17. Rfd1 {[%clk 0:00:46]} 17... Ne4 {[%clk 0:02:32.8]}
18. Be1 {[%clk 0:00:46.1]} 18... b6 {[%clk 0:02:29.5]} 19. Rc2 {[%clk
0:00:38.7]} 19... Bb7 {[%clk 0:02:27.5]} 20. Ne6 {[%clk 0:00:35.9]} 20... Qd6
{[%clk 0:02:25]} 21. Nxf8 {[%clk 0:00:33.9]} 21... Rxf8 {[%clk 0:02:24.6]} 22.
f3 {[%clk 0:00:32.1]} 22... Nf6 {[%clk 0:02:23.6]} 23. Bg3 {[%clk 0:00:32]}
23... Qe6 {[%clk 0:02:23]} 24. Rc7 {[%clk 0:00:25.2]} 24... Ba6 {[%clk
0:02:20.4]} 25. Rdc1 {[%clk 0:00:20.3]} 25... h6 {[%clk 0:02:10.9]} 26. a4
{[%clk 0:00:20.1]} 26... Bc4 {[%clk 0:02:10]} 27. Qa3 {[%clk 0:00:19.1]} 27...
Ng6 {[%clk 0:02:08.6]} 28. Qd6 {[%clk 0:00:18.6]} 28... Qxe3+ {[%clk 0:02:08.1]}
0-1

[Event "*** Titled Tuesday Blitz"]
[Site "Chess.com"]
[Date "2021.03.16"]
[Round "3"]
[White "jefferyx"]
[Black "anon132639"]
[Result "1/2-1/2"]
[WhiteElo "3003"]
[BlackElo "2756"]
[TimeControl "180+1"]
[EndTime "10:26:15 PDT"]
[Termination "Game drawn by agreement"]

1. e4 {[%clk 0:03:00.9]} 1... c5 {[%clk 0:02:59.3]} 2. Nf3 {[%clk 0:03:01]} 2...
Nc6 {[%clk 0:02:59.7]} 3. Bb5 {[%clk 0:03:00.8]} 3... Nf6 {[%clk 0:02:59.5]} 4.
e5 {[%clk 0:02:59.8]} 4... Nd5 {[%clk 0:02:59.5]} 5. O-O {[%clk 0:03:00.2]} 5...
Nc7 {[%clk 0:02:59.7]} 6. Bxc6 {[%clk 0:03:00.5]} 6... dxc6 {[%clk 0:03:00.6]}
7. d3 {[%clk 0:03:00.5]} 7... Ne6 {[%clk 0:02:58.1]} 8. Nbd2 {[%clk 0:03:00.5]}
8... g6 {[%clk 0:02:58.1]} 9. a4 {[%clk 0:03:00.8]} 9... a5 {[%clk 0:02:54.2]}
10. Re1 {[%clk 0:03:00.9]} 10... Bg7 {[%clk 0:02:54.3]} 11. Ne4 {[%clk
0:03:00.9]} 11... O-O {[%clk 0:02:54.1]} 12. Bd2 {[%clk 0:02:59.3]} 12... b6
{[%clk 0:02:50.7]} 13. Qc1 {[%clk 0:02:59.4]} 13... f5 {[%clk 0:02:49.1]} 14.
exf6 {[%clk 0:02:59.3]} 14... exf6 {[%clk 0:02:49.3]} 15. Bh6 {[%clk 0:03:00.1]}
15... Ra7 {[%clk 0:02:48.1]} 16. h4 {[%clk 0:02:48]} 16... Re7 {[%clk 0:02:44]}
17. Bxg7 {[%clk 0:02:47.7]} 17... Kxg7 {[%clk 0:02:44.9]} 18. Qd2 {[%clk
0:02:46.7]} 18... Nd4 {[%clk 0:02:21.7]} 19. Nxd4 {[%clk 0:02:46.6]} 19... Qxd4
{[%clk 0:02:19]} 20. Qc3 {[%clk 0:02:39.6]} 20... Rfe8 {[%clk 0:02:08.4]} 21.
Qxd4 {[%clk 0:02:33.9]} 21... cxd4 {[%clk 0:02:09.3]} 22. Kf1 {[%clk 0:02:34.7]}
22... f5 {[%clk 0:02:01.8]} 23. Nd6 {[%clk 0:02:35]} 23... Rxe1+ {[%clk
0:01:59.9]} 24. Rxe1 {[%clk 0:02:35.9]} 24... Rxe1+ {[%clk 0:01:59.8]} 25. Kxe1
{[%clk 0:02:36.8]} 25... Be6 {[%clk 0:01:50.7]} 26. Ke2 {[%clk 0:02:37.2]} 26...
Kf8 {[%clk 0:01:41.5]} 27. Nc4 {[%clk 0:02:17.7]} 27... Bxc4 {[%clk 0:01:39.1]}
28. dxc4 {[%clk 0:02:18.6]} 28... c5 {[%clk 0:01:31.7]} 29. Kf3 {[%clk 0:02:11]}
29... Ke7 {[%clk 0:01:30.6]} 30. g4 {[%clk 0:02:05]} 30... Kf6 {[%clk
0:01:21.3]} 31. Kf4 {[%clk 0:02:02.7]} 31... h6 {[%clk 0:00:55.3]} 32. g5+
{[%clk 0:01:00]} 1/2-1/2